[Event "Early-Titled-Tuesday-Blitz-April-02-2024"]
[Site "Chess.com"]
[Date "2024.04.02"]
[Round "5"]
[White "Meri-Arabidze"]
[Black "Vse_po_kaify"]
[Result "1-0"]
[WhiteElo "2690"]
[BlackElo "2491"]
[TimeControl "180+1"]
[EndTime "8:55:43 PDT"]
[Termination "Meri-Arabidze won by resignation"]

1. Nf3 {[%clk 0:03:00.9]} 1... c5 {[%clk 0:02:59.9]} 2. c4 {[%clk 0:03:00.4]}
2... Nc6 {[%clk 0:03:00.2]} 3. g3 {[%clk 0:02:59.6]} 3... e5 {[%clk 0:03:00.1]}
4. d3 {[%clk 0:02:56.8]} 4... g6 {[%clk 0:03:00.2]} 5. Bg2 {[%clk 0:02:57.1]}
5... Bg7 {[%clk 0:03:00.6]} 6. Nc3 {[%clk 0:02:57.2]} 6... d6 {[%clk 0:03:00.6]}
7. a3 {[%clk 0:02:57.7]} 7... Nge7 {[%clk 0:02:59.4]} 8. Rb1 {[%clk 0:02:57.9]}
8... O-O {[%clk 0:02:59.6]} 9. b4 {[%clk 0:02:55.9]} 9... f5 {[%clk 0:02:59.9]}
10. Bd2 {[%clk 0:02:49.3]} 10... Rb8 {[%clk 0:02:58.5]} 11. bxc5 {[%clk
0:02:43.1]} 11... dxc5 {[%clk 0:02:58.2]} 12. O-O {[%clk 0:02:43.1]} 12... h6
{[%clk 0:02:57.8]} 13. Qc1 {[%clk 0:02:20.9]} 13... Kh7 {[%clk 0:02:55.1]} 14.
Nd5 {[%clk 0:02:15.3]} 14... Be6 {[%clk 0:02:50.6]} 15. e4 {[%clk 0:02:11.3]}
15... fxe4 {[%clk 0:02:34.6]} 16. dxe4 {[%clk 0:02:12.2]} 16... Bg4 {[%clk
0:02:33.3]} 17. Rb3 {[%clk 0:01:56.8]} 17... Bxf3 {[%clk 0:02:29.6]} 18. Rxf3
{[%clk 0:01:57.1]} 18... Nd4 {[%clk 0:02:28.5]} 19. Rxf8 {[%clk 0:01:41.9]}
19... Qxf8 {[%clk 0:02:27.1]} 20. Qd1 {[%clk 0:01:35.9]} 20... Nxd5 {[%clk
0:02:23.1]} 21. exd5 {[%clk 0:01:35.1]} 21... Qf5 {[%clk 0:02:19.3]} 22. Qb1
{[%clk 0:01:19]} 22... Nf3+ {[%clk 0:01:42.3]} 23. Bxf3 {[%clk 0:01:13.8]} 23...
Qxf3 {[%clk 0:01:42.6]} 24. Be3 {[%clk 0:01:13.4]} 24... b6 {[%clk 0:01:34.9]}
25. Qb5 {[%clk 0:01:04.2]} 25... h5 {[%clk 0:01:30.9]} 26. h4 {[%clk 0:01:02.8]}
26... Rf8 {[%clk 0:01:27.1]} 27. d6 {[%clk 0:00:45.4]} 27... e4 {[%clk
0:01:27.1]} 28. Qd7 {[%clk 0:00:35.8]} 28... Rf7 {[%clk 0:01:19]} 29. Qe8 {[%clk
0:00:35.4]} 29... Rf8 {[%clk 0:01:15.3]} 30. d7 {[%clk 0:00:35]} 30... Qf6
{[%clk 0:01:08.3]} 31. Bg5 {[%clk 0:00:33.6]} 31... Qf3 {[%clk 0:00:43.9]} 32.
d8=Q {[%clk 0:00:28.5]} 32... Rxe8 {[%clk 0:00:43.9]} 33. Qxe8 {[%clk
0:00:28.8]} 33... Bd4 {[%clk 0:00:44.5]} 34. Qd7+ {[%clk 0:00:26.4]} 34... Kg8
{[%clk 0:00:42.4]} 35. Qe6+ {[%clk 0:00:26.3]} 35... Kh7 {[%clk 0:00:41.9]} 36.
Bf4 {[%clk 0:00:18.1]} 36... a6 {[%clk 0:00:31.6]} 37. a4 {[%clk 0:00:17.6]}
37... a5 {[%clk 0:00:30.2]} 38. Qf7+ {[%clk 0:00:16.6]} 38... Kh8 {[%clk
0:00:30.4]} 39. Qe8+ {[%clk 0:00:15.4]} 39... Kh7 {[%clk 0:00:29.4]} 40. Qf7+
{[%clk 0:00:14.7]} 40... Kh8 {[%clk 0:00:29.5]} 41. Qxg6 {[%clk 0:00:14.8]}
41... e3 {[%clk 0:00:20.5]} 42. Qh6+ {[%clk 0:00:15]} 42... Kg8 {[%clk
0:00:20.5]} 43. Bxe3 {[%clk 0:00:15.1]} 43... Bxe3 {[%clk 0:00:19.9]} 44. Qxe3
{[%clk 0:00:14.9]} 1-0

[Event "Early-Titled-Tuesday-Blitz-April-02-2024"]
[Site "Chess.com"]
[Date "2024.04.02"]
[Round "5"]
[White "MasterKroket"]
[Black "KnightmareJoker"]
[Result "1-0"]
[WhiteElo "2565"]
[BlackElo "2328"]
[TimeControl "180+1"]
[EndTime "8:55:43 PDT"]
[Termination "MasterKroket won on time"]

1. e4 {[%clk 0:03:00.9]} 1... e5 {[%clk 0:02:59.7]} 2. Nf3 {[%clk 0:03:00.9]}
2... Nc6 {[%clk 0:03:00.3]} 3. Bb5 {[%clk 0:03:00.2]} 3... a6 {[%clk 0:03:00.2]}
4. Ba4 {[%clk 0:03:00.1]} 4... Nf6 {[%clk 0:02:59.8]} 5. O-O {[%clk 0:02:59]}
5... b5 {[%clk 0:02:59.5]} 6. Bb3 {[%clk 0:02:58.5]} 6... Bc5 {[%clk 0:03:00]}
7. c3 {[%clk 0:02:54.2]} 7... d6 {[%clk 0:03:00.6]} 8. d4 {[%clk 0:02:54.5]}
8... Bb6 {[%clk 0:03:01.2]} 9. h3 {[%clk 0:02:53.7]} 9... Bb7 {[%clk 0:02:54.4]}
10. Re1 {[%clk 0:02:46.8]} 10... h6 {[%clk 0:02:44.4]} 11. a4 {[%clk 0:02:45.9]}
11... O-O {[%clk 0:02:37.9]} 12. Na3 {[%clk 0:02:42.1]} 12... b4 {[%clk
0:02:24.7]} 13. Nc4 {[%clk 0:02:40.6]} 13... Re8 {[%clk 0:02:21.5]} 14. Nxb6
{[%clk 0:02:33.9]} 14... cxb6 {[%clk 0:02:21.5]} 15. d5 {[%clk 0:02:34.6]} 15...
Ne7 {[%clk 0:01:58.3]} 16. cxb4 {[%clk 0:02:34.6]} 16... Ng6 {[%clk 0:01:57]}
17. Nh2 {[%clk 0:02:28.8]} 17... b5 {[%clk 0:01:51.1]} 18. a5 {[%clk 0:02:20.7]}
18... Nh7 {[%clk 0:01:49.9]} 19. Be3 {[%clk 0:02:18.8]} 19... Rf8 {[%clk
0:01:47.7]} 20. Rc1 {[%clk 0:02:00.6]} 20... Rc8 {[%clk 0:01:32.9]} 21. Qg4
{[%clk 0:01:52]} 21... Nf6 {[%clk 0:01:26.7]} 22. Qf3 {[%clk 0:01:48.6]} 22...
Nh4 {[%clk 0:01:15.8]} 23. Qe2 {[%clk 0:01:36.1]} 23... Qd7 {[%clk 0:00:43.3]}
24. f3 {[%clk 0:01:28.4]} 24... Ng6 {[%clk 0:00:41.4]} 25. Qd2 {[%clk
0:01:21.1]} 25... Nh5 {[%clk 0:00:39.8]} 26. Ng4 {[%clk 0:00:51]} 26... Nhf4
{[%clk 0:00:38.8]} 27. g3 {[%clk 0:00:51.7]} 27... Nxh3+ {[%clk 0:00:26.8]} 28.
Kg2 {[%clk 0:00:52.1]} 28... f5 {[%clk 0:00:19]} 29. exf5 {[%clk 0:00:36.9]}
29... Qxf5 {[%clk 0:00:19.2]} 30. Bxh6 {[%clk 0:00:27.2]} 30... Qxf3+ {[%clk
0:00:15.6]} 31. Kxh3 {[%clk 0:00:27.7]} 31... Rxc1 {[%clk 0:00:13.8]} 32. Rxc1
{[%clk 0:00:23.7]} 32... Nf4+ {[%clk 0:00:06]} 33. Bxf4 {[%clk 0:00:23.1]} 33...
exf4 {[%clk 0:00:06.7]} 34. Qg2 {[%clk 0:00:14.4]} 34... Qxb3 {[%clk 0:00:05.4]}
35. Rc7 {[%clk 0:00:15.1]} 35... Bxd5 {[%clk 0:00:04.7]} 36. Qg1 {[%clk
0:00:15.3]} 36... fxg3 {[%clk 0:00:03.7]} 37. Qd4 {[%clk 0:00:14.4]} 37... g2+
{[%clk 0:00:03.7]} 38. Kh4 {[%clk 0:00:14.4]} 1-0

[Event "Early-Titled-Tuesday-Blitz-April-02-2024"]
[Site "Chess.com"]
[Date "2024.04.02"]
[Round "5"]
[White "AlexanderKing"]
[Black "Fengwi"]
[Result "1-0"]
[WhiteElo "2616"]
[BlackElo "2329"]
[TimeControl "180+1"]
[EndTime "8:55:43 PDT"]
[Termination "AlexanderKing won on time"]

1. c4 {[%clk 0:03:00.9]} 1... c5 {[%clk 0:02:57.9]} 2. g3 {[%clk 0:03:01.2]}
2... Nc6 {[%clk 0:02:56.7]} 3. Bg2 {[%clk 0:03:01.4]} 3... g6 {[%clk 0:02:57.2]}
4. Nf3 {[%clk 0:03:01.3]} 4... Bg7 {[%clk 0:02:57.6]} 5. O-O {[%clk 0:03:02]}
5... e5 {[%clk 0:02:58]} 6. Nc3 {[%clk 0:03:02.2]} 6... Nge7 {[%clk 0:02:58.4]}
7. a3 {[%clk 0:03:02.2]} 7... a6 {[%clk 0:02:56.5]} 8. b4 {[%clk 0:02:42.3]}
8... cxb4 {[%clk 0:02:52.1]} 9. axb4 {[%clk 0:02:43.2]} 9... Nxb4 {[%clk
0:02:52.1]} 10. Ba3 {[%clk 0:02:43.4]} 10... Nbc6 {[%clk 0:02:50.6]} 11. Ne4
{[%clk 0:02:42.5]} 11... O-O {[%clk 0:02:47]} 12. Nd6 {[%clk 0:02:27]} 12... b5
{[%clk 0:02:02.8]} 13. cxb5 {[%clk 0:01:19.2]} 13... axb5 {[%clk 0:02:02.3]} 14.
Ng5 {[%clk 0:01:18.5]} 14... b4 {[%clk 0:01:51.2]} 15. Bb2 {[%clk 0:01:18.4]}
15... Rxa1 {[%clk 0:01:50.7]} 16. Qxa1 {[%clk 0:01:15.7]} 16... h6 {[%clk
0:01:30.3]} 17. Ngxf7 {[%clk 0:00:31.4]} 17... Qa5 {[%clk 0:00:53.5]} 18. Qxa5
{[%clk 0:00:16.5]} 18... Nxa5 {[%clk 0:00:53.2]} 19. Nxe5 {[%clk 0:00:12.2]}
19... Nb3 {[%clk 0:00:38.6]} 20. d3 {[%clk 0:00:07]} 20... Ba6 {[%clk 0:00:25]}
21. Be4 {[%clk 0:00:06.3]} 21... Nd2 {[%clk 0:00:21.6]} 22. Ra1 {[%clk
0:00:05.8]} 22... Nxe4 {[%clk 0:00:21.1]} 23. Nxe4 {[%clk 0:00:02.7]} 23... Bb7
{[%clk 0:00:17.8]} 24. Nd6 {[%clk 0:00:02.8]} 24... Bd5 {[%clk 0:00:16.1]} 25.
Ra7 {[%clk 0:00:02.1]} 25... Be6 {[%clk 0:00:10.3]} 26. Ndc4 {[%clk 0:00:01.8]}
26... Nd5 {[%clk 0:00:07.7]} 27. e4 {[%clk 0:00:01.9]} 27... Nc3 {[%clk
0:00:07.9]} 28. Rb7 {[%clk 0:00:02.3]} 28... Ne2+ {[%clk 0:00:08]} 29. Kf1
{[%clk 0:00:02.4]} 29... Nc3 {[%clk 0:00:03.1]} 30. Rxb4 {[%clk 0:00:02.7]}
30... Bh3+ {[%clk 0:00:03.1]} 31. Ke1 {[%clk 0:00:02.4]} 31... Na2 {[%clk
0:00:03.5]} 32. Rb7 {[%clk 0:00:02.3]} 32... Ra8 {[%clk 0:00:02]} 33. f4 {[%clk
0:00:02.6]} 33... g5 {[%clk 0:00:01.4]} 34. f5 {[%clk 0:00:02.4]} 34... h5
{[%clk 0:00:01.2]} 35. Rxd7 {[%clk 0:00:02.8]} 35... g4 {[%clk 0:00:01.1]} 36.
Ke2 {[%clk 0:00:02.6]} 36... Bh6 {[%clk 0:00:01.3]} 37. Rb7 {[%clk 0:00:02.6]}
1-0

[Event "Early-Titled-Tuesday-Blitz-April-02-2024"]
[Site "Chess.com"]
[Date "2024.04.02"]
[Round "5"]
[White "JoshWeinstein"]
[Black "aljado"]
[Result "1/2-1/2"]
[WhiteElo "2366"]
[BlackElo "2157"]
[TimeControl "180+1"]
[EndTime "8:55:44 PDT"]
[Termination "Game drawn by repetition"]

1. e4 {[%clk 0:03:00.9]} 1... c5 {[%clk 0:02:57.6]} 2. Nc3 {[%clk 0:02:46.6]}
2... Nc6 {[%clk 0:02:55.9]} 3. Bc4 {[%clk 0:02:46.1]} 3... e6 {[%clk 0:02:54.6]}
4. d3 {[%clk 0:02:45.8]} 4... a6 {[%clk 0:02:53.1]} 5. a4 {[%clk 0:02:45.4]}
5... g6 {[%clk 0:02:52.4]} 6. f4 {[%clk 0:02:44.7]} 6... Bg7 {[%clk 0:02:52.6]}
7. Nf3 {[%clk 0:02:43.8]} 7... Nge7 {[%clk 0:02:51.5]} 8. O-O {[%clk 0:02:38.3]}
8... d5 {[%clk 0:02:50.5]} 9. exd5 {[%clk 0:02:38.4]} 9... exd5 {[%clk
0:02:49.4]} 10. Bb3 {[%clk 0:02:38.2]} 10... O-O {[%clk 0:02:48.9]} 11. Ne2
{[%clk 0:02:35.1]} 11... Bg4 {[%clk 0:02:43.4]} 12. c3 {[%clk 0:02:33.1]} 12...
Re8 {[%clk 0:02:33.2]} 13. h3 {[%clk 0:02:32.7]} 13... Be6 {[%clk 0:02:29]} 14.
d4 {[%clk 0:02:31.7]} 14... c4 {[%clk 0:02:27.3]} 15. Bc2 {[%clk 0:02:31.1]}
15... Nf5 {[%clk 0:02:24.2]} 16. g4 {[%clk 0:02:27.9]} 16... Nh4 {[%clk
0:02:22.8]} 17. Ng3 {[%clk 0:02:27.6]} 17... Nxf3+ {[%clk 0:02:20.4]} 18. Qxf3
{[%clk 0:02:28.5]} 18... Qh4 {[%clk 0:02:03.4]} 19. f5 {[%clk 0:02:21.9]} 19...
Bd7 {[%clk 0:02:03]} 20. f6 {[%clk 0:02:18.3]} 20... Bf8 {[%clk 0:02:02.7]} 21.
Bf4 {[%clk 0:02:04.8]} 21... Re6 {[%clk 0:01:58.4]} 22. g5 {[%clk 0:01:19.2]}
22... Qxh3 {[%clk 0:01:55.7]} 23. Qxd5 {[%clk 0:01:01.2]} 23... Rd8 {[%clk
0:01:30.4]} 24. Qg2 {[%clk 0:00:50.1]} 24... Qxg2+ {[%clk 0:01:20.6]} 25. Kxg2
{[%clk 0:00:51]} 25... Na5 {[%clk 0:01:10.8]} 26. Rh1 {[%clk 0:00:46.7]} 26...
Rde8 {[%clk 0:01:08.6]} 27. Kf2 {[%clk 0:00:46]} 27... Bc6 {[%clk 0:01:05.8]}
28. Rh4 {[%clk 0:00:37.3]} 28... Bd5 {[%clk 0:01:01.7]} 29. Rf1 {[%clk 0:00:29]}
29... Nc6 {[%clk 0:00:54.7]} 30. Bd1 {[%clk 0:00:26.2]} 30... Na5 {[%clk
0:00:46.2]} 31. Bg4 {[%clk 0:00:25.1]} 31... Rb6 {[%clk 0:00:46.5]} 32. Rb1
{[%clk 0:00:22.8]} 32... Nb3 {[%clk 0:00:44.2]} 33. Bf3 {[%clk 0:00:22.7]} 33...
Bxf3 {[%clk 0:00:39.8]} 34. Kxf3 {[%clk 0:00:23.6]} 34... Bd6 {[%clk 0:00:33.6]}
35. Rbh1 {[%clk 0:00:23.6]} 35... Bxf4 {[%clk 0:00:31.8]} 36. Kxf4 {[%clk
0:00:24.5]} 36... h5 {[%clk 0:00:31.4]} 37. gxh6 {[%clk 0:00:23.8]} 37... Kh7
{[%clk 0:00:25.8]} 38. Ne4 {[%clk 0:00:23.6]} 38... Nd2 {[%clk 0:00:20.8]} 39.
Ng5+ {[%clk 0:00:23.2]} 39... Kh8 {[%clk 0:00:17.8]} 40. Nxf7+ {[%clk
0:00:22.8]} 40... Kh7 {[%clk 0:00:17.5]} 41. Ng5+ {[%clk 0:00:22.8]} 41... Kh8
{[%clk 0:00:17.5]} 42. h7 {[%clk 0:00:22.9]} 42... Rxf6+ {[%clk 0:00:15.4]} 43.
Kg3 {[%clk 0:00:23.5]} 43... Re3+ {[%clk 0:00:10]} 44. Kg2 {[%clk 0:00:23.3]}
44... Re2+ {[%clk 0:00:09.5]} 45. Kg3 {[%clk 0:00:23.7]} 45... Re3+ {[%clk
0:00:09.3]} 46. Kg2 {[%clk 0:00:20.3]} 46... Re2+ {[%clk 0:00:09.2]} 47. Kg3
{[%clk 0:00:20.1]} 47... Re3+ {[%clk 0:00:09.2]} 1/2-1/2

[Event "Early-Titled-Tuesday-Blitz-April-02-2024"]
[Site "Chess.com"]
[Date "2024.04.02"]
[Round "5"]
[White "GOGIEFF"]
[Black "vladislavkovalev"]
[Result "1-0"]
[WhiteElo "3022"]
[BlackElo "2884"]
[TimeControl "180+1"]
[EndTime "8:55:45 PDT"]
[Termination "GOGIEFF won on time"]

1. c4 {[%clk 0:03:00.9]} 1... Nf6 {[%clk 0:02:58.2]} 2. Nc3 {[%clk 0:02:59.1]}
2... g6 {[%clk 0:02:57.5]} 3. d4 {[%clk 0:02:57.4]} 3... Bg7 {[%clk 0:02:57.7]}
4. e4 {[%clk 0:02:57.6]} 4... d6 {[%clk 0:02:58]} 5. Be2 {[%clk 0:02:57.2]} 5...
O-O {[%clk 0:02:58.4]} 6. Nf3 {[%clk 0:02:57.6]} 6... e5 {[%clk 0:02:58.2]} 7.
O-O {[%clk 0:02:57.7]} 7... exd4 {[%clk 0:02:58.6]} 8. Nxd4 {[%clk 0:02:58]}
8... Re8 {[%clk 0:02:59.2]} 9. f3 {[%clk 0:02:58.1]} 9... Nc6 {[%clk 0:02:59.6]}
10. Be3 {[%clk 0:02:56.2]} 10... Nh5 {[%clk 0:02:59.7]} 11. Re1 {[%clk
0:02:56.5]} 11... Be5 {[%clk 0:02:42]} 12. Nxc6 {[%clk 0:02:55.7]} 12... bxc6
{[%clk 0:02:41.9]} 13. g3 {[%clk 0:02:56.1]} 13... c5 {[%clk 0:02:07]} 14. Qd2
{[%clk 0:02:55.2]} 14... Bb7 {[%clk 0:01:59.1]} 15. Rad1 {[%clk 0:02:48.1]}
15... Qf6 {[%clk 0:01:32.3]} 16. Bg5 {[%clk 0:02:41.7]} 16... Qg7 {[%clk
0:01:31.2]} 17. Kg2 {[%clk 0:02:29.3]} 17... Bxc3 {[%clk 0:01:11.6]} 18. bxc3
{[%clk 0:02:20.3]} 18... Re6 {[%clk 0:01:11.6]} 19. g4 {[%clk 0:02:14.7]} 19...
Nf6 {[%clk 0:01:11.7]} 20. Bh6 {[%clk 0:02:06.8]} 20... Qh8 {[%clk 0:01:11.5]}
21. Bd3 {[%clk 0:02:00.2]} 21... Rae8 {[%clk 0:01:09.7]} 22. h4 {[%clk
0:01:58.8]} 22... Nd7 {[%clk 0:00:58.8]} 23. h5 {[%clk 0:01:56.4]} 23... Ne5
{[%clk 0:00:49.9]} 24. Be2 {[%clk 0:01:20]} 24... Qf6 {[%clk 0:00:43.3]} 25. Bg5
{[%clk 0:01:19]} 25... Qg7 {[%clk 0:00:43.6]} 26. Rh1 {[%clk 0:01:13.1]} 26...
Nxg4 {[%clk 0:00:32]} 27. Rh4 {[%clk 0:00:45.1]} 27... Ne5 {[%clk 0:00:14.1]}
28. Kf2 {[%clk 0:00:40.7]} 28... f6 {[%clk 0:00:10.1]} 29. Bh6 {[%clk
0:00:40.9]} 29... Qf7 {[%clk 0:00:10.7]} 30. hxg6 {[%clk 0:00:41.4]} 30... Nxg6
{[%clk 0:00:11.4]} 31. Rg1 {[%clk 0:00:38.8]} 31... f5 {[%clk 0:00:09.1]} 32.
Qe3 {[%clk 0:00:30.9]} 32... Kh8 {[%clk 0:00:04.7]} 33. Rh5 {[%clk 0:00:28.6]}
33... fxe4 {[%clk 0:00:02.6]} 34. f4 {[%clk 0:00:28.9]} 34... Ne7 {[%clk
0:00:02.3]} 35. Bg7+ {[%clk 0:00:28.1]} 35... Qxg7 {[%clk 0:00:02.9]} 36. Rxg7
{[%clk 0:00:27.6]} 36... Kxg7 {[%clk 0:00:03.8]} 37. f5 {[%clk 0:00:27.7]} 37...
Rf8 {[%clk 0:00:03.2]} 38. Bg4 {[%clk 0:00:23.2]} 38... Ref6 {[%clk 0:00:02.7]}
39. Qg5+ {[%clk 0:00:23]} 39... Kh8 {[%clk 0:00:03.1]} 40. Qh4 {[%clk
0:00:23.3]} 40... R8f7 {[%clk 0:00:03.3]} 41. Rxh7+ {[%clk 0:00:22.9]} 41...
Rxh7 {[%clk 0:00:03.2]} 42. Qxf6+ {[%clk 0:00:23]} 42... Kg8 {[%clk 0:00:04.1]}
43. Qe6+ {[%clk 0:00:23.3]} 43... Rf7 {[%clk 0:00:03.9]} 44. Bh5 {[%clk
0:00:22]} 1-0

[Event "Early-Titled-Tuesday-Blitz-April-02-2024"]
[Site "Chess.com"]
[Date "2024.04.02"]
[Round "5"]
[White "LornerAcosta"]
[Black "ragnaroek66"]
[Result "0-1"]
[WhiteElo "2600"]
[BlackElo "2506"]
[TimeControl "180+1"]
[EndTime "8:55:46 PDT"]
[Termination "ragnaroek66 won by resignation"]

1. Nf3 {[%clk 0:03:00.9]} 1... d5 {[%clk 0:02:58.6]} 2. e3 {[%clk 0:03:00.8]}
2... Nf6 {[%clk 0:02:58.2]} 3. c4 {[%clk 0:03:01.3]} 3... e6 {[%clk 0:02:58.5]}
4. b3 {[%clk 0:03:00.4]} 4... Bd6 {[%clk 0:02:58.6]} 5. Bb2 {[%clk 0:03:01.1]}
5... dxc4 {[%clk 0:02:58.1]} 6. bxc4 {[%clk 0:03:01.1]} 6... O-O {[%clk
0:02:58.5]} 7. Qc2 {[%clk 0:03:01.7]} 7... Re8 {[%clk 0:02:58.5]} 8. Nc3 {[%clk
0:03:01.1]} 8... Nc6 {[%clk 0:02:54]} 9. a3 {[%clk 0:03:00.9]} 9... e5 {[%clk
0:02:53.9]} 10. Ng5 {[%clk 0:02:45.6]} 10... Bf8 {[%clk 0:02:09.6]} 11. Be2
{[%clk 0:02:39.1]} 11... h6 {[%clk 0:02:01.5]} 12. h4 {[%clk 0:02:38.1]} 12...
g6 {[%clk 0:01:57.8]} 13. Nge4 {[%clk 0:02:20.2]} 13... Nxe4 {[%clk 0:01:48.8]}
14. Nxe4 {[%clk 0:02:16.8]} 14... f5 {[%clk 0:01:38.1]} 15. Nc3 {[%clk
0:02:16.1]} 15... h5 {[%clk 0:01:19.1]} 16. O-O-O {[%clk 0:01:52.4]} 16... Bg7
{[%clk 0:01:18.1]} 17. Nd5 {[%clk 0:01:47]} 17... Ne7 {[%clk 0:01:11.3]} 18. Nc3
{[%clk 0:01:35.9]} 18... c6 {[%clk 0:01:01]} 19. d4 {[%clk 0:01:07.6]} 19...
exd4 {[%clk 0:01:01.9]} 20. exd4 {[%clk 0:01:07.5]} 20... Qa5 {[%clk 0:00:55.4]}
21. Rhe1 {[%clk 0:00:48.9]} 21... Be6 {[%clk 0:00:49.8]} 22. Bf1 {[%clk
0:00:41.3]} 22... Bf7 {[%clk 0:00:48.3]} 23. Kb1 {[%clk 0:00:37.8]} 23... Rad8
{[%clk 0:00:47.4]} 24. Ne2 {[%clk 0:00:19.8]} 24... b5 {[%clk 0:00:45.6]} 25.
Nf4 {[%clk 0:00:18]} 25... Rb8 {[%clk 0:00:37.2]} 26. cxb5 {[%clk 0:00:11.2]}
26... cxb5 {[%clk 0:00:34.7]} 27. d5 {[%clk 0:00:11.1]} 27... Bxb2 {[%clk
0:00:29.3]} 28. Qxb2 {[%clk 0:00:11.1]} 28... b4 {[%clk 0:00:29.9]} 29. a4
{[%clk 0:00:10.6]} 29... Qxa4 {[%clk 0:00:29.4]} 30. d6 {[%clk 0:00:10.8]} 30...
Nc6 {[%clk 0:00:26.4]} 31. Rxe8+ {[%clk 0:00:09.1]} 31... Rxe8 {[%clk 0:00:26]}
32. Rc1 {[%clk 0:00:08.3]} 32... Nd4 {[%clk 0:00:20.5]} 33. Bd3 {[%clk
0:00:08.3]} 33... b3 {[%clk 0:00:20]} 34. d7 {[%clk 0:00:07.3]} 34... Qxd7
{[%clk 0:00:18.8]} 35. Rd1 {[%clk 0:00:07.8]} 35... Qa4 {[%clk 0:00:18.7]} 36.
Bf1 {[%clk 0:00:07.5]} 36... Rd8 {[%clk 0:00:18.4]} 37. f3 {[%clk 0:00:07.3]}
37... Qa2+ {[%clk 0:00:18.5]} 38. Qxa2 {[%clk 0:00:06.2]} 38... bxa2+ {[%clk
0:00:19.4]} 39. Kb2 {[%clk 0:00:07]} 39... Rb8+ {[%clk 0:00:16.2]} 40. Kc3
{[%clk 0:00:06.6]} 40... Rc8+ {[%clk 0:00:12.7]} 41. Kxd4 {[%clk 0:00:05.2]}
41... Rd8+ {[%clk 0:00:12.9]} 42. Kc3 {[%clk 0:00:05.1]} 42... Rxd1 {[%clk
0:00:13]} 0-1

[Event "Early-Titled-Tuesday-Blitz-April-02-2024"]
[Site "Chess.com"]
[Date "2024.04.02"]
[Round "5"]
[White "FREDERICKtheMATE"]
[Black "Midgardsormur"]
[Result "1-0"]
[WhiteElo "2684"]
[BlackElo "2459"]
[TimeControl "180+1"]
[EndTime "8:55:47 PDT"]
[Termination "FREDERICKtheMATE won by resignation"]

1. d4 {[%clk 0:03:00.9]} 1... Nf6 {[%clk 0:02:59.1]} 2. c4 {[%clk 0:03:00.1]}
2... g6 {[%clk 0:02:56.4]} 3. Nc3 {[%clk 0:02:59.4]} 3... Bg7 {[%clk 0:02:56.7]}
4. e4 {[%clk 0:03:00]} 4... d6 {[%clk 0:02:57.2]} 5. Nf3 {[%clk 0:03:00.5]} 5...
O-O {[%clk 0:02:57.8]} 6. Be2 {[%clk 0:03:01.1]} 6... Nbd7 {[%clk 0:02:56.9]} 7.
O-O {[%clk 0:03:00]} 7... e5 {[%clk 0:02:57.1]} 8. d5 {[%clk 0:02:56.2]} 8...
Qe7 {[%clk 0:02:44.8]} 9. Ne1 {[%clk 0:02:55.1]} 9... c5 {[%clk 0:02:44.2]} 10.
a3 {[%clk 0:02:51.3]} 10... h6 {[%clk 0:02:38.4]} 11. b4 {[%clk 0:02:51]} 11...
b6 {[%clk 0:02:38.5]} 12. Nd3 {[%clk 0:02:48.6]} 12... Nh7 {[%clk 0:02:37.5]}
13. a4 {[%clk 0:02:44.9]} 13... a5 {[%clk 0:02:27.5]} 14. bxc5 {[%clk
0:02:42.6]} 14... bxc5 {[%clk 0:02:25.3]} 15. Nb5 {[%clk 0:02:42.6]} 15... f5
{[%clk 0:02:21.8]} 16. f3 {[%clk 0:02:42.3]} 16... Ndf6 {[%clk 0:02:12.9]} 17.
Nf2 {[%clk 0:02:37.7]} 17... Ng5 {[%clk 0:02:07.8]} 18. Bd3 {[%clk 0:02:32.4]}
18... f4 {[%clk 0:01:48.3]} 19. Rb1 {[%clk 0:02:29.8]} 19... h5 {[%clk
0:01:46.1]} 20. Nc3 {[%clk 0:02:28.7]} 20... Nf7 {[%clk 0:01:40.7]} 21. g3
{[%clk 0:02:15.7]} 21... fxg3 {[%clk 0:01:16.6]} 22. hxg3 {[%clk 0:02:16.6]}
22... h4 {[%clk 0:01:13.2]} 23. g4 {[%clk 0:02:14.4]} 23... Nh7 {[%clk
0:01:11.7]} 24. Nh3 {[%clk 0:02:00.6]} 24... Nfg5 {[%clk 0:01:05.1]} 25. Nxg5
{[%clk 0:02:00.6]} 25... Nxg5 {[%clk 0:01:06]} 26. Rb6 {[%clk 0:01:52.6]} 26...
Qf6 {[%clk 0:00:34.1]} 27. Be2 {[%clk 0:01:46.8]} 27... Ra6 {[%clk 0:00:16.7]}
28. Rc6 {[%clk 0:01:40.7]} 28... Ra7 {[%clk 0:00:12.9]} 29. Nb5 {[%clk
0:01:38.1]} 29... Rd7 {[%clk 0:00:13.1]} 30. Kh2 {[%clk 0:01:33.3]} 30... Nf7
{[%clk 0:00:07.5]} 31. Be3 {[%clk 0:01:15.9]} 31... Bh6 {[%clk 0:00:07.7]} 32.
Qd2 {[%clk 0:01:15]} 32... Bxe3 {[%clk 0:00:07.5]} 33. Qxe3 {[%clk 0:01:15.9]}
33... Ng5 {[%clk 0:00:03]} 34. Rb6 {[%clk 0:01:09.1]} 34... Rdd8 {[%clk
0:00:01.8]} 35. Nxd6 {[%clk 0:01:04.9]} 35... Rxd6 {[%clk 0:00:01.6]} 36. Rxd6
{[%clk 0:01:04.8]} 36... Nxf3+ {[%clk 0:00:02.5]} 37. Rxf3 {[%clk 0:01:04.6]}
37... Qxd6 {[%clk 0:00:03.4]} 38. Rxf8+ {[%clk 0:01:04.5]} 38... Qxf8 {[%clk
0:00:04.3]} 39. Bf3 {[%clk 0:01:00.7]} 39... Bd7 {[%clk 0:00:04.6]} 40. Kh3
{[%clk 0:00:58]} 40... Bxa4 {[%clk 0:00:04.3]} 41. Kxh4 {[%clk 0:00:57.9]} 41...
Bd7 {[%clk 0:00:04.1]} 42. Kg3 {[%clk 0:00:55.8]} 42... Kg7 {[%clk 0:00:04.3]}
43. Qg5 {[%clk 0:00:54.8]} 43... Qf4+ {[%clk 0:00:04.1]} 44. Qxf4 {[%clk
0:00:54.9]} 44... exf4+ {[%clk 0:00:05]} 45. Kxf4 {[%clk 0:00:55.6]} 45... a4
{[%clk 0:00:05.7]} 46. Bd1 {[%clk 0:00:55.7]} 46... a3 {[%clk 0:00:06]} 47. Bb3
{[%clk 0:00:56.4]} 47... Ba4 {[%clk 0:00:06]} 48. Ba2 {[%clk 0:00:56.7]} 48...
Bc2 {[%clk 0:00:06]} 49. e5 {[%clk 0:00:56.1]} 49... Kf7 {[%clk 0:00:06.2]} 50.
g5 {[%clk 0:00:54.8]} 50... Ke7 {[%clk 0:00:06.5]} 51. Ke3 {[%clk 0:00:54.8]}
51... Kd7 {[%clk 0:00:04.6]} 52. Kd2 {[%clk 0:00:55.3]} 52... Bf5 {[%clk
0:00:03.6]} 53. Kc3 {[%clk 0:00:55.3]} 53... Kc7 {[%clk 0:00:04]} 54. Kb3 {[%clk
0:00:55.7]} 54... Kb6 {[%clk 0:00:03.3]} 55. Kxa3 {[%clk 0:00:55.9]} 55... Ka5
{[%clk 0:00:03.9]} 56. Kb3 {[%clk 0:00:54.6]} 56... Bd3 {[%clk 0:00:03.7]} 57.
Kc3 {[%clk 0:00:53]} 57... Bf5 {[%clk 0:00:04.6]} 58. Bb3 {[%clk 0:00:53]} 58...
Kb6 {[%clk 0:00:04.5]} 59. Bc2 {[%clk 0:00:53.3]} 59... Bxc2 {[%clk 0:00:04.3]}
60. Kxc2 {[%clk 0:00:54.2]} 1-0